[Event "29th Czech Open-Rapid 2018"]
[Site "Pardubice"]
[Date "2018.07.18"]
[Round "2"]
[White "Mitra, Roman C"]
[Black "Natarov, Ilya"]
[Result "1/2-1/2"]
[ECO "B02"]
[WhiteElo "2104"]
[BlackElo "2028"]
[Annotator "NA"]
[PlyCount "126"]
[EventDate "2018.07.18"]
[EventType "swiss"]
[EventCountry "CZE"]
[SourceTitle "playchess.com"]
[Source "ChessBase"]
[SourceQuality "1"]
[TimeControl "900+10"]

1. e4 {[%emt 0:00:00]} Nf6 {[%emt 0:00:00]} 2. Nc3 {[%emt 0:00:00]} d5 {[%emt 0:00:00]} 3. exd5 {[%emt 0:00:00]} Nxd5 {[%emt 0:00:00]} 4. Nf3 {[%emt 0:00:00]} Bg4 {[%emt 0:00:05]} 5. h3 {[%emt 0:00:06]} Bh5 {[%emt 0:00:08]} 6. d3 {[%emt 0:00:04]} Nc6 {[%emt 0:00:09]} 7. Ne4 {[%emt 0:00:09]} e6 {[%emt 0:00:37]} 8. Ng3 {[%emt 0:00:02]} Bg6 {[%emt 0:00:04]} 9. Be2 {[%emt 0:00:02]} Bd6 {[%emt 0:00:13]} 10. Ne4 {[%emt 0:00:06]} Be7 {[%emt 0:00:40]} 11. O-O {[%emt 0:00:05]} O-O {[%emt 0:00:06]} 12. Bd2 {[%emt 0:00:02]} h6 {[%emt 0:00:15]} 13. a3 {[%emt 0:00:02]} Nf6 {[%emt 0:00:26]} 14. Nxf6+ {[%emt 0:01:05]} Bxf6 {[%emt 0:00:01]} 15. Qc1 {[%emt 0:00:02]} Qd7 {[%emt 0:00:37]} 16. Rd1 {[%emt 0:00:01]} Rad8 {[%emt 0:00:16]} 17. Rb1 {[%emt 0:00:40]} Rfe8 {[%emt 0:00:06]} 18. b4 {[%emt 0:00:02]} a6 {[%emt 0:00:27]} 19. a4 {[%emt 0:00:27]} Nd4 {[%emt 0:00:48]} 20. Nxd4 {[%emt 0:00:02]} Bxd4 {[%emt 0:00:03]} 21. b5 {[%emt 0:00:28]} axb5 {[%emt 0:00:05]} 22. axb5 {[%emt 0:00:05]} b6 {[%emt 0:00:10]} 23. Bf3 {[%emt 0:00:03]} Qe7 {[%emt 0:00:29]} 24. Bb4 {[%emt 0:00:03]} Bc5 {[%emt 0:00:53]} 25. Bc3 {[%emt 0:00:02]} e5 {[%emt 0:00:24]} 26. Bc6 {[%emt 0:00:04]} Rf8 {[%emt 0:00:17]} 27. Re1 {[%emt 0:00:02]} Qh4 {[%emt 0:00:37]} 28. Re2 {[%emt 0:01:44]} f6 {[%emt 0:01:16]} 29. Qe1 {[%emt 0:00:40]} Be8 {[%emt 0:00:31]} 30. Bf3 {[%emt 0:00:03]} Qa4 {[%emt 0:00:36]} 31. Qc1 {[%emt 0:00:45]} Bxb5 {[%emt 0:01:29]} 32. Re4 {[%emt 0:00:02]} Qa6 {[%emt 0:00:06]} 33. Ra1 {[%emt 0:01:24]} Qc8 {[%emt 0:00:01]} 34. Rg4 {[%emt 0:00:03]} Kh8 {[%emt 0:00:42]} 35. Rg6 {[%emt 0:00:13]} Qf5 {[%emt 0:00:39]} 36. Rg3 {[%emt 0:01:47]} Be8 {[%emt 0:01:38]} 37. Qe1 {[%emt 0:00:12]} Bh5 {[%emt 0:01:07]} 38. Ra7 {[%emt 0:00:33]} Bxf3 {[%emt 0:00:15]} 39. Rxf3 {[%emt 0:00:02]} Qd7 {[%emt 0:00:02]} 40. Qe4 {[%emt 0:00:02]} Bd6 {[%emt 0:01:56]} 41. g4 {[%emt 0:02:06]} Qb5 {[%emt 0:00:22]} 42. Ra1 {[%emt 0:00:41]} Qc5 {[%emt 0:00:28]} 43. Qe1 {[%emt 0:00:17]} Qc6 {[%emt 0:00:05]} 44. Re3 {[%emt 0:00:14]} Ra8 {[%emt 0:00:27]} 45. Rxa8 {[%emt 0:00:17]} Rxa8 {[%emt 0:00:03]} 46. Re4 {[%emt 0:00:02]} Ra4 {[%emt 0:00:44]} 47. Rxa4 {[%emt 0:00:20]} Qxa4 {[%emt 0:00:01]} 48. Qe2 {[%emt 0:00:07]} Qc6 {[%emt 0:00:21]} 49. Bb2 {[%emt 0:00:14]} b5 {[%emt 0:00:24]} 50. h4 {[%emt 0:00:18]} Qd5 {[%emt 0:00:14]} 51. h5 {[%emt 0:00:07]} c5 {[%emt 0:00:14]} 52. c4 {[%emt 0:00:02]} Qb7 {[%emt 0:00:12]} 53. cxb5 {[%emt 0:00:31]} Qxb5 {[%emt 0:00:01]} 54. Bc1 {[%emt 0:00:23]} Qb3 {[%emt 0:00:13]} 55. Qf3 {[%emt 0:00:12]} Kg8 {[%emt 0:00:58]} 56. Kg2 {[%emt 0:00:15]} Bf8 {[%emt 0:00:25]} 57. Qe4 {[%emt 0:00:13]} Qe6 {[%emt 0:00:10]} 58. Be3 {[%emt 0:00:08]} Kh8 {[%emt 0:00:32]} 59. f3 {[%emt 0:00:13]} Kg8 {[%emt 0:00:05]} 60. Kg3 {[%emt 0:00:06]} Qd6 {[%emt 0:00:14]} 61. Kg2 {[%emt 0:00:07]} Qe6 {[%emt 0:00:01]} 62. Qg6 {[%emt 0:00:25]} Kh8 {[%emt 0:00:18]} 63. Qe4 {[%emt 0:00:03]} Kg8 {[%emt 0:00:01]} 1/2-1/2

[Event "29th Czech Open-Rapid 2018"]
[Site "Pardubice"]
[Date "2018.07.18"]
[Round "2"]
[White "Mojzis, Jaroslav"]
[Black "Gschwendtner, Stanislav"]
[Result "1/2-1/2"]
[ECO "A05"]
[WhiteElo "2099"]
[BlackElo "2032"]
[Annotator "NA"]
[PlyCount "102"]
[EventDate "2018.07.18"]
[EventType "swiss"]
[EventCountry "CZE"]
[SourceTitle "playchess.com"]
[Source "ChessBase"]
[SourceQuality "1"]
[TimeControl "900+10"]

1. Nf3 {[%emt 0:00:00]} Nf6 {[%emt 0:00:00]} 2. c4 {[%emt 0:00:00]} g6 {[%emt 0:00:00]} 3. g3 {[%emt 0:00:01]} Bg7 {[%emt 0:00:01]} 4. Bg2 {[%emt 0:00:01]} O-O {[%emt 0:00:08]} 5. O-O {[%emt 0:00:06]} d5 {[%emt 0:00:03]} 6. cxd5 {[%emt 0:00:46]} Nxd5 {[%emt 0:00:04]} 7. Nc3 {[%emt 0:00:01]} Nb6 {[%emt 0:00:45]} 8. b3 {[%emt 0:00:31]} c5 {[%emt 0:00:15]} 9. Bb2 {[%emt 0:00:06]} c4 {[%emt 0:00:04]} 10. Rc1 {[%emt 0:03:41]} Nc6 {[%emt 0:00:11]} 11. Ne1 {[%emt 0:02:17]} Be6 {[%emt 0:00:15]} 12. d3 {[%emt 0:02:00]} cxb3 {[%emt 0:03:37]} 13. axb3 {[%emt 0:00:01]} Nd4 {[%emt 0:00:05]} 14. Bxb7 {[%emt 0:01:05]} Rb8 {[%emt 0:00:10]} 15. Bg2 {[%emt 0:00:11]} Bxb3 {[%emt 0:00:08]} 16. Qd2 {[%emt 0:00:02]} Be6 {[%emt 0:00:24]} 17. Rb1 {[%emt 0:00:58]} Nb3 {[%emt 0:02:19]} 18. Qf4 {[%emt 0:00:30]} Qd6 {[%emt 0:01:34]} 19. Qxd6 {[%emt 0:01:58]} exd6 {[%emt 0:00:01]} 20. Nf3 {[%emt 0:00:07]} Rfc8 {[%emt 0:00:10]} 21. Ne4 {[%emt 0:00:15]} d5 {[%emt 0:00:56]} 22. Neg5 {[%emt 0:00:39]} d4 {[%emt 0:01:00]} 23. Nxe6 {[%emt 0:00:06]} fxe6 {[%emt 0:00:02]} 24. Bh3 {[%emt 0:00:38]} Rc6 {[%emt 0:00:02]} 25. Rfd1 {[%emt 0:00:32]} h6 {[%emt 0:00:15]} 26. Ba3 {[%emt 0:01:01]} Nd5 {[%emt 0:00:12]} 27. Rf1 {[%emt 0:01:18]} Nc3 {[%emt 0:00:08]} 28. Rbe1 {[%emt 0:00:01]} Ra6 {[%emt 0:00:26]} 29. Bb2 {[%emt 0:00:04]} Kf7 {[%emt 0:00:09]} 30. e3 {[%emt 0:00:11]} Ra2 {[%emt 0:00:10]} 31. Bc1 {[%emt 0:00:11]} Ne2+ {[%emt 0:00:14]} 32. Rxe2 {[%emt 0:00:19]} Rxe2 {[%emt 0:00:03]} 33. exd4 {[%emt 0:00:06]} Nxd4 {[%emt 0:00:10]} 34. Bg2 {[%emt 0:00:29]} Rc2 {[%emt 0:00:38]} 35. Be3 {[%emt 0:00:01]} e5 {[%emt 0:00:15]} 36. Ra1 {[%emt 0:00:14]} Ne2+ {[%emt 0:00:44]} 37. Kf1 {[%emt 0:00:09]} a5 {[%emt 0:00:02]} 38. Rxa5 {[%emt 0:00:13]} Rb1+ {[%emt 0:00:10]} 39. Ne1 {[%emt 0:00:02]} Nd4 {[%emt 0:00:30]} 40. Ra7+ {[%emt 0:00:11]} Kg8 {[%emt 0:00:16]} 41. Bd5+ {[%emt 0:00:05]} Kh7 {[%emt 0:00:02]} 42. Ra8 {[%emt 0:00:03]} Bf6 {[%emt 0:01:18]} 43. Ra7+ {[%emt 0:00:04]} Kh8 {[%emt 0:00:05]} 44. Ra8+ {[%emt 0:00:21]} Kg7 {[%emt 0:00:12]} 45. Ra7+ {[%emt 0:00:01]} Kh8 {[%emt 0:00:28]} 46. Ra8+ {[%emt 0:00:01]} Kh7 {[%emt 0:00:03]} 47. Ra7+ {[%emt 0:00:04]} Bg7 {[%emt 0:00:08]} 48. Ra8 {[%emt 0:00:01]} Bf6 {[%emt 0:00:41]} 49. Ra7+ {[%emt 0:00:05]} Bg7 {[%emt 0:00:47]} 50. Ra8 {[%emt 0:00:01]} Bf6 {[%emt 0:00:13]} 51. Ra7+ {[%emt 0:00:01]} Bg7 1/2-1/2

[Event "29th Czech Open-Rapid 2018"]
[Site "Pardubice"]
[Date "2018.07.18"]
[Round "2"]
[White "Dimitrov, Dejan"]
[Black "Tomek, Karel"]
[Result "1-0"]
[ECO "A45"]
[WhiteElo "2096"]
[BlackElo "1785"]
[Annotator "NA"]
[PlyCount "111"]
[EventDate "2018.07.18"]
[EventType "swiss"]
[EventCountry "CZE"]
[SourceTitle "playchess.com"]
[Source "ChessBase"]
[SourceQuality "1"]
[TimeControl "900+10"]

1. d4 {[%emt 0:00:00]} Nf6 {[%emt 0:00:00]} 2. Bf4 {[%emt 0:00:00]} e6 {[%emt 0:00:00]} 3. e3 {[%emt 0:00:02]} b6 {[%emt 0:00:04]} 4. Nf3 {[%emt 0:00:06]} Bb7 {[%emt 0:00:06]} 5. Nbd2 {[%emt 0:00:03]} d6 {[%emt 0:00:04]} 6. Bd3 {[%emt 0:00:35]} Be7 {[%emt 0:00:10]} 7. h3 {[%emt 0:00:05]} Nbd7 {[%emt 0:00:05]} 8. O-O {[%emt 0:00:08]} O-O {[%emt 0:00:04]} 9. Qe2 {[%emt 0:00:09]} d5 {[%emt 0:00:59]} 10. e4 {[%emt 0:01:05]} dxe4 {[%emt 0:00:06]} 11. Nxe4 {[%emt 0:00:03]} Nxe4 {[%emt 0:00:03]} 12. Bxe4 {[%emt 0:00:03]} Bxe4 {[%emt 0:00:03]} 13. Qxe4 {[%emt 0:00:02]} Nf6 {[%emt 0:00:25]} 14. Qe2 {[%emt 0:01:04]} c5 {[%emt 0:01:25]} 15. dxc5 {[%emt 0:00:05]} Bxc5 {[%emt 0:00:11]} 16. Rfd1 {[%emt 0:00:25]} Qc8 {[%emt 0:00:10]} 17. Bg5 {[%emt 0:00:54]} Be7 {[%emt 0:00:08]} 18. Ne5 {[%emt 0:00:26]} Rd8 {[%emt 0:00:13]} 19. Rxd8+ {[%emt 0:01:20]} Qxd8 {[%emt 0:01:26]} 20. Nc6 {[%emt 0:01:20]} Qc7 {[%emt 0:00:22]} 21. Qf3 {[%emt 0:00:52]} Rc8 {[%emt 0:01:18]} 22. Nxe7+ {[%emt 0:00:17]} Qxe7 {[%emt 0:00:02]} 23. c3 {[%emt 0:00:25]} Rd8 {[%emt 0:00:10]} 24. Re1 {[%emt 0:01:07]} h6 {[%emt 0:00:05]} 25. Be3 {[%emt 0:00:37]} Nd5 {[%emt 0:00:21]} 26. Bd4 {[%emt 0:00:14]} Qg5 {[%emt 0:00:33]} 27. Kh2 {[%emt 0:01:21]} Qf4+ {[%emt 0:00:23]} 28. Qxf4 {[%emt 0:00:13]} Nxf4 {[%emt 0:00:02]} 29. g3 {[%emt 0:00:56]} Ng6 {[%emt 0:00:05]} 30. Kg2 {[%emt 0:00:19]} Rd7 {[%emt 0:00:04]} 31. Re2 {[%emt 0:00:20]} b5 {[%emt 0:00:03]} 32. f4 {[%emt 0:00:39]} Ne7 {[%emt 0:00:26]} 33. Be3 {[%emt 0:00:58]} a6 {[%emt 0:00:27]} 34. g4 {[%emt 0:00:37]} Rd3 {[%emt 0:00:07]} 35. Kf3 {[%emt 0:00:36]} f5 {[%emt 0:00:27]} 36. Rd2 {[%emt 0:00:25]} Rxd2 {[%emt 0:00:13]} 37. Bxd2 {[%emt 0:00:02]} Kf7 {[%emt 0:00:22]} 38. b3 {[%emt 0:00:13]} g6 {[%emt 0:00:30]} 39. c4 {[%emt 0:00:11]} h5 {[%emt 0:00:22]} 40. gxh5 {[%emt 0:00:40]} gxh5 {[%emt 0:00:04]} 41. cxb5 {[%emt 0:00:12]} axb5 {[%emt 0:00:02]} 42. a4 {[%emt 0:00:04]} bxa4 {[%emt 0:01:25]} 43. bxa4 {[%emt 0:00:01]} Nd5 {[%emt 0:00:09]} 44. a5 {[%emt 0:00:12]} Nc7 {[%emt 0:00:03]} 45. Bb4 {[%emt 0:00:17]} Na6 {[%emt 0:00:44]} 46. Bd6 {[%emt 0:00:10]} Ke8 {[%emt 0:00:04]} 47. Kg3 {[%emt 0:00:14]} Kd7 {[%emt 0:00:01]} 48. Ba3 {[%emt 0:00:31]} Ke8 {[%emt 0:07:09]} 49. Kh4 {[%emt 0:00:11]} Kf7 {[%emt 0:00:02]} 50. Kxh5 {[%emt 0:00:07]} Nc7 {[%emt 0:01:06]} 51. Bd6 {[%emt 0:00:16]} Na6 {[%emt 0:00:08]} 52. Kg5 {[%emt 0:00:08]} Kg7 {[%emt 0:00:03]} 53. h4 {[%emt 0:00:18]} Kf7 {[%emt 0:00:10]} 54. h5 {[%emt 0:00:30]} Kg7 {[%emt 0:00:07]} 55. h6+ {[%emt 0:00:12]} Kh7 {[%emt 0:00:04]} 56. Kh5 {[%emt 0:00:06]} 1-0

[Event "29th Czech Open-Rapid 2018"]
[Site "Pardubice"]
[Date "2018.07.18"]
[Round "2"]
[White "Vykydal, Frantisek"]
[Black "Gallego Alcaraz, Andres Felipe"]
[Result "0-1"]
[ECO "B26"]
[WhiteElo "2089"]
[BlackElo "2504"]
[Annotator "RC"]
[PlyCount "88"]
[EventDate "2018.07.18"]
[EventType "swiss"]
[EventCountry "CZE"]
[SourceTitle "playchess.com"]
[Source "ChessBase"]
[SourceQuality "1"]
[TimeControl "900+10"]

1. e4 {[%emt 0:00:00]} c5 {[%emt 0:00:00]} 2. Nc3 {[%emt 0:00:01]} Nc6 {[%emt 0:00:00]} 3. g3 {[%emt 0:00:02]} g6 {[%emt 0:00:01]} 4. Bg2 {[%emt 0:00:01]} Bg7 {[%emt 0:00:01]} 5. d3 {[%emt 0:00:02]} d6 {[%emt 0:00:11]} 6. Be3 {[%emt 0:00:05]} Rb8 {[%emt 0:00:23]} 7. a4 {[%emt 0:00:12]} a6 {[%emt 0:00:07]} 8. Qd2 {[%emt 0:00:04]} h5 {[%emt 0:00:26]} 9. h4 {[%emt 0:00:08]} Nf6 {[%emt 0:00:11]} 10. f3 {[%emt 0:00:07]} b5 {[%emt 0:00:11]} 11. axb5 {[%emt 0:00:02]} axb5 {[%emt 0:00:01]} 12. Nge2 {[%emt 0:00:05]} e5 {[%emt 0:00:22]} 13. O-O {[%emt 0:00:08]} Be6 {[%emt 0:00:14]} 14. Bg5 {[%emt 0:00:14]} Qd7 {[%emt 0:00:12]} 15. Kh2 {[%emt 0:01:23]} Nd4 {[%emt 0:00:32]} 16. Nxd4 {[%emt 0:00:05]} cxd4 {[%emt 0:00:03]} 17. Nd1 {[%emt 0:00:15]} d5 {[%emt 0:03:29]} 18. Nf2 {[%emt 0:00:29]} dxe4 {[%emt 0:01:38]} 19. Nxe4 {[%emt 0:00:18]} Nxe4 {[%emt 0:00:02]} 20. fxe4 {[%emt 0:00:09]} O-O {[%emt 0:00:40]} 21. Bf6 {[%emt 0:00:16]} Rfc8 {[%emt 0:00:19]} 22. Rf2 {[%emt 0:00:32]} Rc5 {[%emt 0:00:18]} 23. c3 {[%emt 0:01:44]} dxc3 {[%emt 0:00:30]} 24. bxc3 {[%emt 0:00:03]} Rbc8 {[%emt 0:00:25]} 25. d4 {[%emt 0:00:59]} Rxc3 {[%emt 0:03:39]} 26. d5 {[%emt 0:00:12]} Bxf6 {[%emt 0:00:44]} 27. Rxf6 {[%emt 0:01:33]} Rc2 {[%emt 0:00:18]} 28. Qg5 {[%emt 0:00:19]} Bh3 {[%emt 0:00:08]} 29. Rg1 {[%emt 0:00:55]} Bxg2 {[%emt 0:00:42]} 30. Rxg2 {[%emt 0:00:02]} Rxg2+ {[%emt 0:00:02]} 31. Kxg2 {[%emt 0:00:02]} Rc2+ {[%emt 0:00:15]} 32. Rf2 {[%emt 0:00:06]} Rxf2+ {[%emt 0:00:29]} 33. Kxf2 {[%emt 0:00:02]} Qd6 {[%emt 0:00:01]} 34. Qc1 {[%emt 0:00:29]} Qb6+ {[%emt 0:01:08]} 35. Kf3 {[%emt 0:00:31]} Kf8 {[%emt 0:00:30]} 36. Qg5 {[%emt 0:03:15]} Qd6 {[%emt 0:00:28]} 37. Qc1 {[%emt 0:00:39]} Ke7 {[%emt 0:00:29]} 38. Ke2 {[%emt 0:00:30]} Qb6 {[%emt 0:00:32]} 39. Qg5+ {[%emt 0:00:37]} Qf6 {[%emt 0:00:49]} 40. Qxf6+ {[%emt 0:00:43]} Kxf6 {[%emt 0:00:01]} 41. Kd2 {[%emt 0:00:01]} Ke7 {[%emt 0:00:10]} 42. Kc3 {[%emt 0:00:01]} Kf6 43. Kd3 Ke7 44. Ke2 {Ke6 d6} Kd7 0-1

[Event "29th Czech Open-Rapid 2018"]
[Site "Pardubice"]
[Date "2018.07.18"]
[Round "2"]
[White "Vinklarek, Ondrej"]
[Black "Zarovs, Aleksandrs"]
[Result "0-1"]
[ECO "A05"]
[WhiteElo "2071"]
[BlackElo "1836"]
[Annotator "NA"]
[PlyCount "108"]
[EventDate "2018.07.18"]
[EventType "swiss"]
[EventCountry "CZE"]
[SourceTitle "playchess.com"]
[Source "ChessBase"]
[SourceQuality "1"]
[TimeControl "900+10"]

1. Nf3 {[%emt 0:00:00]} Nf6 {[%emt 0:00:00]} 2. g3 {[%emt 0:00:00]} b6 {[%emt 0:00:00]} 3. Bg2 {[%emt 0:00:00]} Bb7 {[%emt 0:00:00]} 4. O-O {[%emt 0:00:00]} e6 {[%emt 0:00:00]} 5. d3 {[%emt 0:00:21]} d5 {[%emt 0:00:00]} 6. Nbd2 {[%emt 0:00:22]} Be7 {[%emt 0:00:03]} 7. e4 {[%emt 0:01:03]} O-O {[%emt 0:00:05]} 8. Qe2 {[%emt 0:02:06]} c5 {[%emt 0:00:04]} 9. b3 {[%emt 0:03:05]} Nc6 {[%emt 0:00:01]} 10. Bb2 {[%emt 0:00:35]} Rc8 {[%emt 0:00:02]} 11. Ne5 {[%emt 0:01:44]} dxe4 {[%emt 0:00:36]} 12. Nxc6 {[%emt 0:01:01]} Bxc6 {[%emt 0:00:07]} 13. dxe4 {[%emt 0:00:10]} Qc7 {[%emt 0:01:22]} 14. f4 {[%emt 0:00:08]} Rfd8 {[%emt 0:00:15]} 15. c4 {[%emt 0:02:37]} a6 {[%emt 0:00:23]} 16. e5 {[%emt 0:00:42]} Ne8 {[%emt 0:01:32]} 17. Ne4 {[%emt 0:00:10]} Rd7 {[%emt 0:00:32]} 18. f5 {[%emt 0:00:17]} exf5 {[%emt 0:00:31]} 19. Rxf5 {[%emt 0:00:14]} Rcd8 {[%emt 0:00:32]} 20. Rxf7 Kxf7 {[%emt 0:00:30]} 21. e6+ {[%emt 0:00:40]} Kg8 {[%emt 0:00:46]} 22. exd7 {[%emt 0:00:16]} Qxd7 {[%emt 0:01:07]} 23. Rf1 {[%emt 0:00:47]} Bxe4 {[%emt 0:00:28]} 24. Bxe4 {[%emt 0:00:44]} Bf6 {[%emt 0:00:45]} 25. Bd5+ {[%emt 0:00:37]} Kh8 {[%emt 0:00:22]} 26. Bc1 {[%emt 0:00:04]} Nc7 {[%emt 0:00:14]} 27. Rd1 {[%emt 0:00:14]} Bd4+ {[%emt 0:00:15]} 28. Rxd4 {[%emt 0:01:29]} cxd4 {[%emt 0:00:04]} 29. Be4 {[%emt 0:00:04]} d3 {[%emt 0:02:17]} 30. Qh5 {[%emt 0:00:04]} g6 {[%emt 0:00:03]} 31. Bxg6 {[%emt 0:00:09]} Ne6 {[%emt 0:03:07]} 32. Bb2+ {[%emt 0:00:04]} Nd4 {[%emt 0:00:04]} 33. Qe5+ {[%emt 0:00:21]} Qg7 {[%emt 0:01:52]} 34. Bxd4 {[%emt 0:00:14]} Qxe5 {[%emt 0:00:04]} 35. Bxe5+ {[%emt 0:00:02]} Kg8 {[%emt 0:00:00]} 36. Bh5 {[%emt 0:00:21]} d2 {[%emt 0:00:27]} 37. Kf2 {[%emt 0:00:10]} d1=Q {[%emt 0:00:12]} 38. Bxd1 {[%emt 0:00:01]} Rxd1 {[%emt 0:00:02]} 39. Bc7 {[%emt 0:00:01]} Rd2+ {[%emt 0:01:45]} 40. Ke3 {[%emt 0:00:01]} Rxa2 {[%emt 0:00:01]} 41. Bxb6 {[%emt 0:00:00]} Rb2 {[%emt 0:00:04]} 42. c5 {[%emt 0:00:11]} Rxb3+ {[%emt 0:00:08]} 43. Kd4 {[%emt 0:00:01]} Kf7 {[%emt 0:00:27]} 44. Kd5 {[%emt 0:00:04]} Ke7 {[%emt 0:00:21]} 45. Bc7 {[%emt 0:00:21]} Kd7 {[%emt 0:00:11]} 46. Be5 {[%emt 0:00:01]} a5 {[%emt 0:00:28]} 47. g4 {[%emt 0:00:01]} a4 {[%emt 0:00:14]} 48. h4 {[%emt 0:00:24]} a3 {[%emt 0:00:13]} 49. h5 {[%emt 0:00:10]} a2 {[%emt 0:00:11]} 50. g5 {[%emt 0:00:10]} Rb1 {[%emt 0:00:10]} 51. c6+ {[%emt 0:00:15]} Kc8 {[%emt 0:00:05]} 52. g6 {[%emt 0:00:12]} Rb5+ {[%emt 0:00:04]} 53. Kd6 {[%emt 0:00:50]} Rxe5 {[%emt 0:00:05]} 54. g7 {[%emt 0:00:10]} Re8 0-1

[Event "29th Czech Open-Rapid 2018"]
[Site "Pardubice"]
[Date "2018.07.18"]
[Round "2"]
[White "Ludvik, Tomas"]
[Black "Tsvetkov, Andrey"]
[Result "1/2-1/2"]
[ECO "D45"]
[WhiteElo "2048"]
[BlackElo "2259"]
[Annotator "NA"]
[PlyCount "50"]
[EventDate "2018.07.18"]
[EventType "swiss"]
[EventCountry "CZE"]
[SourceTitle "playchess.com"]
[Source "ChessBase"]
[SourceQuality "1"]
[TimeControl "900+10"]

1. d4 {[%emt 0:00:00]} d5 {[%emt 0:00:00]} 2. c4 e6 3. Nc3 {[%emt 0:00:00]} c6 {[%emt 0:00:00]} 4. e3 {[%emt 0:00:00]} Nf6 {[%emt 0:00:00]} 5. Nf3 {[%emt 0:00:00]} Nbd7 {[%emt 0:00:00]} 6. Qc2 {[%emt 0:00:00]} Bd6 {[%emt 0:00:00]} 7. Bd3 {[%emt 0:00:00]} dxc4 {[%emt 0:00:00]} 8. Bxc4 {[%emt 0:00:01]} O-O {[%emt 0:00:00]} 9. O-O {[%emt 0:00:01]} b5 {[%emt 0:00:01]} 10. Bd3 {[%emt 0:00:03]} Bb7 {[%emt 0:00:01]} 11. Ng5 {[%emt 0:00:06]} h6 {[%emt 0:01:57]} 12. Nge4 {[%emt 0:00:44]} Nxe4 {[%emt 0:00:26]} 13. Nxe4 {[%emt 0:00:05]} Be7 {[%emt 0:00:02]} 14. Bd2 {[%emt 0:00:43]} a5 {[%emt 0:00:29]} 15. Rac1 {[%emt 0:01:50]} Rc8 {[%emt 0:00:15]} 16. Nc5 {[%emt 0:04:34]} Nxc5 {[%emt 0:02:14]} 17. dxc5 {[%emt 0:00:02]} Bxc5 {[%emt 0:00:02]} 18. Qxc5 {[%emt 0:00:20]} Qxd3 {[%emt 0:00:02]} 19. Bxa5 {[%emt 0:00:15]} Qd5 {[%emt 0:00:10]} 20. Bb4 {[%emt 0:02:00]} Rfd8 {[%emt 0:00:33]} 21. a3 {[%emt 0:00:54]} Qe4 {[%emt 0:00:22]} 22. f3 {[%emt 0:00:54]} Qd3 {[%emt 0:00:30]} 23. e4 {[%emt 0:00:39]} Qd4+ {[%emt 0:01:13]} 24. Qxd4 {[%emt 0:02:03]} Rxd4 {[%emt 0:00:02]} 25. Bc3 {[%emt 0:00:13]} Rd3 {[%emt 0:00:04]} 1/2-1/2

[Event "29th Czech Open-Rapid 2018"]
[Site "Pardubice"]
[Date "2018.07.18"]
[Round "2"]
[White "Fedotov, Konstantin"]
[Black "Mlcak, Viktor"]
[Result "1-0"]
[ECO "B03"]
[WhiteElo "2017"]
[BlackElo "1939"]
[Annotator "NA"]
[PlyCount "59"]
[EventDate "2018.07.18"]
[EventType "swiss"]
[EventCountry "CZE"]
[SourceTitle "playchess.com"]
[Source "ChessBase"]
[SourceQuality "1"]
[TimeControl "900+10"]

1. e4 {[%emt 0:00:00]} Nf6 {[%emt 0:00:00]} 2. e5 {[%emt 0:00:02]} Nd5 {[%emt 0:00:00]} 3. d4 {[%emt 0:00:01]} d6 {[%emt 0:00:00]} 4. exd6 {[%emt 0:00:00]} cxd6 {[%emt 0:00:00]} 5. c4 {[%emt 0:00:01]} Nb6 {[%emt 0:00:00]} 6. Nc3 {[%emt 0:00:05]} g6 {[%emt 0:00:14]} 7. h3 {[%emt 0:00:09]} Bg7 {[%emt 0:00:03]} 8. Nf3 {[%emt 0:00:01]} O-O {[%emt 0:00:05]} 9. Be3 {[%emt 0:00:09]} Nc6 {[%emt 0:00:03]} 10. Be2 {[%emt 0:00:06]} Bf5 {[%emt 0:00:16]} 11. O-O {[%emt 0:00:07]} e5 {[%emt 0:01:10]} 12. d5 {[%emt 0:00:13]} Ne7 {[%emt 0:02:16]} 13. b4 {[%emt 0:00:42]} Rc8 {[%emt 0:01:54]} 14. Qb3 {[%emt 0:00:04]} h5 {[%emt 0:00:19]} 15. Rfd1 {[%emt 0:01:10]} Qc7 {[%emt 0:05:27]} 16. Nb5 {[%emt 0:00:27]} Qb8 {[%emt 0:00:23]} 17. a4 {[%emt 0:00:44]} Rcd8 {[%emt 0:01:14]} 18. Nxa7 {[%emt 0:00:32]} e4 {[%emt 0:01:29]} 19. Nd4 {[%emt 0:01:50]} Qxa7 {[%emt 0:00:17]} 20. a5 {[%emt 0:00:01]} Nxc4 {[%emt 0:01:37]} 21. Nc6 {[%emt 0:01:41]} Qa8 {[%emt 0:01:10]} 22. Nxe7+ {[%emt 0:00:04]} Kh7 {[%emt 0:00:05]} 23. Qxc4 {[%emt 0:00:11]} Bxa1 {[%emt 0:00:18]} 24. Rxa1 {[%emt 0:00:12]} Bd7 {[%emt 0:00:20]} 25. Qxe4 {[%emt 0:01:02]} Rde8 {[%emt 0:00:11]} 26. Bxh5 {[%emt 0:00:28]} Bf5 {[%emt 0:00:13]} 27. Qh4 {[%emt 0:00:03]} Rxe7 28. Bxg6+ Kg7 29. Qh7+ Kf6 30. Bxf5 1-0